Workbook

Sheet 융합연구 팀별 지원내역
A1: 미디어 융합연구(CR)팀 지원금 사용내역
A2: 구분 | B2: 담당교수 | C2: 참가자명 | D2: 프로젝트명 | E2: 지원금 | F2: 내역 | G2: 1차 | H2: 2차 | I2: 3차 | J2: 4차 | K2: 5차 | L2: 6차 | M2: 7차 | Q2: 사용금액 | R2: 사용잔액
A3: 1팀 | B3: 오규환 | C3: 홍이경,현명아 | D3: 미디어콘텐츠와 IoT를 활용한 초등학교 SW 교육 프로그램 연구 | F3: 사용일자
E4: 지원금 | F4: 800000 | Q4: =SUM(G4:M4) -> 0 | R4: =F4-Q4 -> 800000
A5: 2팀 | B5: 오규환 | C5: 김석규 | D5: Physical Game Design 에 대한 연구 | F5: 사용일자
E6: 지원금 | F6: 500000 | Q6: =SUM(G6:M6) -> 0 | R6: =F6-Q6 -> 500000
A7: 3팀 | B7: 오규환 | C7: 김기훈 | D7: 모바일 소셜 플랫폼 서버에 대한 연구 | F7: 사용일자
E8: 지원금 | F8: 500000 | Q8: =SUM(G8:M8) -> 0 | R8: 500000
A9: 4팀 | B9: 경민호 | C9: 황원주,이정섭,강시우 정나영 | D9: 피드백을 이용한 중국어 교육 효과 연구 | F9: 사용일자 | G9: 6월4일
E10: 지원금 | F10: 800000 | G10: 145000 | Q10: =SUM(G10:P10) -> 145000 | R10: 655000
A11: 5팀 | B11: 이경원 | C11: 허건,이용균,최경철 | D11: The History Visualization: Infovis Papers | F11: 사용일자
E12: 지원금 | F12: 800000 | Q12: =SUM(H12:M12) -> 0 | R12: 800000
A13: 6팀 | B13: 석혜정 | C13: 김주성,이학래,주지훈,원민재 | D13: 수원 화성 인터랙티브 애니메이션 스토리텔링 연구 | F13: 사용일자 | G13: 5월8일 | H13: 5월19일 | I13: 5월19일 | J13: 10월 26일
E14: 지원금 | F14: 800000 | G14: 60000 | H14: 55987 | I14: 50000 | J14: 128800 | Q14: =SUM(G14:P14) -> 294787 | R14: 505213
F15: 사용내역 | G15: 회의비 | H15: 에셋구매 | I15: 회의비 | J15: 컨텐츠 제작 어셋 구입
A16: 7팀 | B16: 장우진 | C16: 이재현,조용상,김학겸,김나영,이다솜,장나 | D16: 창작 음악 및 사운드를 이용한 단편영화 제작 | F16: 사용일자 | G16: 5월21일 | H16: 7월3일 | I16: 7월3일 | J16: 8월7일
E17: 지원금 | F17: 800000 | G17: 108000 | H17: 82000 | I17: 206800 | J17: 350000 | Q17: =SUM(G17:P17) -> 746800 | R17: 53200
F18: 사용내역 | G18: 서적구매 | H18: 서적구매 | I18: 연구용 소프트웨어구매 | J18: Arturia VCollection4 소프트웨어
A19: 8팀 | B19: 이경원 | C19: 임흥준,박흥석,김유셕 | D19: A Set Visualization Technique using Social Network Based Association Rules: TED DataSet(연관분석 기반의 사회연결망을 활용한 집합의 시각화 방법: TED 데이터 이용) | F19: 사용일자 | G19: 9월3일 | H19: 9월15일
E20: 지원금 | F20: 800000 | G20: 100000 | H20: 12000 | Q20: =SUM(G20:P20) -> 112000 | R20: 688000
F21: 사용내역 | G21: 서적구매 | H21: 설문조사 참여학생용 다과비
A22: 9팀 | B22: 석혜정 | C22: 김예람,김경주 | D22: 애니메이션을 활용한 에듀테인먼트 콘텐츠의 현황 조사 및 분석 | F22: 사용일자 | G22: 5월26일 | H22: 6월17일 | I22: 6월19일 | J22: 8월12일 | K22: 8월19일 | L22: 8월25일 | M22: 9월1일 | N22: 10월 8일
E23: 지원금 | F23: 800000 | G23: 40000 | H23: 29700 | I23: 59906 | J23: 177300 | K23: 19500 | L23: 15500 | M23: 14400 | N23: 160945 | Q23: =SUM(G23:P23) -> 517251 | R23: 282749
F24: 사용내역 | G24: 회의비 | H24: 회의비및 회의중 식비 | I24: 지니스쿨 1개월 결제, EBS 허풍선이 과학쇼 다시보기 2개월 이용권, '리틀팍스'홈헤이지 자유이용권 1개월 galxyz인앱결제 | J24: 연구관련 도서구매 | K24: 회의비 | L24: 회의비및 회의중 식비 | M24: 연구분석대상 교육용콘텐츠 결제 (EBS 허풍선이 과학쇼) | N24: 컨텐츠 제작 어셋 구입
A25: 10팀 | B25: 김현희 | C25: 이지선,이동호 | D25: 인터랙티브 타이포그래피(가제목) | F25: 사용일자 | G25: 5월16일 | H25: 6월25일 | I25: 7월23일 | J25: 9월3일 | K25: 9월24일
E26: 지원금 | F26: 800000 | G26: 80000 | H26: 53200 | I26: 40000 | J26: 70500 | K26: 43000 | Q26: =SUM(G26:P26) -> 286700 | R26: 513300
F27: 사용내역 | G27: 디자인학회 참가비 | H27: 회의비및 회의중 식비 | I27: 회의비및 회의중 식비 | J27: 회의비및 회의중 식비 | K27: 회의비및 회의중 식비
A28: 11팀 | B28: 김현희 | C28: 이윤지,이동호 | D28: UX를 고려한 인터페이스에 대한 연구(미정) | F28: 사용일자 | G28: 10월 15일
E29: 지원금 | F29: 800000 | G29: 36000 | Q29: =SUM(G29:P29) -> 36000 | R29: =F29-Q29 -> 764000
F30: 사용내역 | G30: 회의비
A31: 12팀 | B31: 이경원 | C31: 최한민,문성민,하효지 | D31: UN 국가의 투표성향 유사도 분석을 위한 proximity based circular 시각화 연구 | F31: 사용일자 | G31: 10월 5일 | H31: 10월 19일 | I31: 10월 20일 | J31: 10월 20일
E32: 지원금 | F32: 800000 | G32: 121700 | H32: 30000 | I32: 173700 | J32: 151200 | Q32: =SUM(G32:P32) -> 476600 | R32: =F32-Q32 -> 323400
F33: 사용내역 | G33: 도서구매 | H33: 희의비 | I33: 도서구매 | J33: 도서구매
A34: 13팀 | B34: 이경원 | C34: 조은정,박상은,김형중,문성민 | D34: UN 국가의 투표성향 유사도 분석을 위한 proximity based circular 시각화 연구 | F34: 사용일자 | G34: 10월 12일 | H34: 10월 12일
E35: 지원금 | F35: 800000 | G35: 118620 | H35: 118120 | Q35: =SUM(G35:P35) -> 236740 | R35: =F35-Q35 -> 563260
F36: 사용내역 | G36: 도서구매 | H36: 도서구매
A37: 2학기 | R37: 0
A38: 1팀 | B38: 오규환 | C38: 김인대,허건,이필수,이주희,백상수,이윤지,박하늘,이정연, | D38: 슬라이딩 퍼즐 기반 게임 플레이 연구 | F38: 사용일자
E39: 지원금 | F39: 800000 | Q39: =SUM(G39:M39) -> 0 | R39: 800000
A40: 2팀 | B40: 이경원 | C40: 김태현김동환,강지은 | D40: 데이터 시각화에 따른 NBA팀들의 승패요인 및 스타일분석 | F40: 사용일자 | G40: 9월16일 | H40: 9월17일
E41: 지원금 | F41: 800000 | G41: 28500 | H41: 28300 | Q41: =SUM(G41:M41) -> 56800 | R41: 743200
F42: 사용내역 | G42: 회의비및 회의중 식비 | H42: 회의비및 회의중 식비
A43: 3팀 | B43: 신현준 | C43: 김희태 | D43: Realtime Traffic Light Recognition In Korea Traffic System(실시간 신호등 인식:한국 신호 체계에서의 신호등 인식) | F43: 사용일자
E44: 지원금 | F44: 500000 | Q44: =SUM(G44:M44) -> 0 | R44: 500000
A45: 4팀 | B45: 이경원 | C45: 강주연 강동훈, 이승규, | D45: 검색엔진의 검색결과에 대한 내용상 분류와 시각화에 따른 사용자 편의성 증대 | F45: 사용일자
E46: 지원금 | F46: 800000 | Q46: =SUM(G46:M46) -> 0 | R46: 800000
A47: 5팀 | B47: 경민호 | C47: 정진수,문주성,정석주,김성진 | D47: Arduino 프로젝트 | F47: 사용일자 | G47: 6월29일~09월.01일 | H47: 6월29일~09월.01일
E48: 지원금 | F48: 800000 | G48: 343402 | H48: 38500 | Q48: =SUM(G48:M48) -> 381902 | R48: 418098
F49: 사용내역 | G49: 아두이노 제작용품구매 | H49: 아두이노 제작용품구매
A50: 6팀 | B50: 이경원 | C50: 이명호,김예원,송정우,김진기 | D50: 아주대 중앙도서관 데이터 분석 및 시각화를 통한 활용방안 연구 | F50: 사용일자 | G50: 10월 5일
E51: 지원금 | F51: 800000 | G51: 198000 | Q51: =SUM(G51:M51) -> 198000 | R51: 602000
F52: 사용내역 | G52: 도서구매
A53: 7팀 | B53: 이경원 | C53: 한상빈,김광록,김종훈,강바롬,한승엽 | D53: Show me the sopt | F53: 사용일자
E54: 지원금 | F54: 800000 | Q54: =SUM(G54:M54) -> 0 | R54: =F54-Q54 -> 800000
A55: 합 계 | F55: =F4+F6+F8+F10+F12+F14+F17+F20+F23+F26+F29+F32+F35+F39+F41+F44+F46+F48+F51+F54 -> 15100000 | Q55: =Q4+Q6+Q8+Q10+Q12+Q14+Q17+Q20+Q23+Q26+Q29+Q32+Q35+Q39+Q41+Q44+Q46+Q48+Q51+Q54 -> 3488580 | R55: =R4+R6+R8+R10+R12+R14+R17+R20+R23+R26+R29+R32+R35+R39+R41+R44+R46+R48+R51+R54 -> 11611420
A56: 융합연구 운영비 | F56: 사용일자 | G56: 5월18일 | H56: 10월 19일 | I56: 10월 27일 | J56: 10월 29일
F57: 600000 | G57: 88800 | H57: 53000 | I57: 401830 | J57: 39060 | Q57: =SUM(G57:P57) -> 582690 | R57: =F57-Q57 -> 17310
F58: 사용내역 | G58: 사업설명회 | H58: VIS 학회 포스터 제작 | I58: 회의비 | J58: 회의비
A60: 법인카드
A61: 현금

Sheet 해외학술대회 지원내역
A1: 미디어 융합연구(CR)팀 해외학술대회 지원 내역
A2: 구분 | B2: 담당교수 | C2: 참가자명 | D2: 프로젝트명 | N2: 합 계
A3: 1팀 | B3: 오규환 | C3: 홍이경,현명아 | D3: 미디어콘텐츠와 IoT를 활용한 초등학교 SW 교육 프로그램 연구 | E3: 사용일자
E4: 사용금액
A5: 2팀 | B5: 오규환 | C5: 김석규 | D5: Physical Game Design 에 대한 연구
A7: 3팀 | B7: 오규환 | C7: 김기훈 | D7: 모바일 소셜 플랫폼 서버에 대한 연구
A9: 4팀 | B9: 경민호 | C9: 황원주,이정섭,강시우 정나영 | D9: 피드백을 이용한 중국어 교육 효과 연구
A11: 5팀 | B11: 이경원 | C11: 허건,이용균,최경철 | D11: The History Visualization: Infovis Papers | E11: 9월17일 | F11: 9월 23일
E12: 973000 | F12: 752789 | N12: =SUM(E12:F12) -> 1725789
E13: 항공료 | F13: 학회등록비
A14: 6팀 | B14: 석혜정 | C14: 김주성,이학래,주지훈,원민재 | D14: 수원 화성 인터랙티브 애니메이션 스토리텔링 연구 | E14: 8월.8일~8월.14일 | F14: 8월.8일~8월.14일
E15: 1603700 | F15: 402804 | N15: =SUM(E15:F15) -> 2006504
E16: 항공료 | F16: 학회등록비
A17: 7팀 | B17: 장우진 | C17: 이재현,조용상,김학겸,김나영,이다솜,장나 | D17: 창작 음악 및 사운드를 이용한 단편영화 제작
A20: 8팀 | B20: 이경원 | C20: 임흥준,박흥석,김유석 | D20: A Set Visualization Technique using Social Network Based Association Rules: TED DataSet(연관분석 기반의 사회연결망을 활용한 집합의 시각화 방법: TED 데이터 이용) | E20: 9월17일 | F20: 9월 23일 | G20: 10월 1일 | H20: 10월 21일
E21: 1907000 | F21: 1250940 | G21: 316800 | H21: 28000 | N21: =SUM(E21:M21) -> 3502740
E22: 항공료 | F22: 학회등록비 | G22: 교정/번역비 | H22: VDS 학회 포스터 제작 (박흥석)
A23: 9팀 | B23: 석혜정 | C23: 김예람,김경주 | D23: 애니메이션을 활용한 에듀테인먼트 콘텐츠의 현황 조사 및 분석 | E23: 8월.8일~8월.14일 | F23: 8월.8일~8월.14일
E24: 1603700 | F24: 402804 | N24: =SUM(E24:M24) -> 2006504
E25: 항공료 | F25: 학회등록비
A26: 10팀 | B26: 김현희 | C26: 이지선,이동호 | D26: 인터랙티브 타이포그래피(가제목)
A29: 11팀 | B29: 김현희 | C29: 이윤지,이동호 | D29: UX를 고려한 인터페이스에 대한 연구(미정)
A31: 12팀 | B31: 이경원 | C31: 최한민,문성민,하효지 | D31: UN 국가의 투표성향 유사도 분석을 위한 proximity based circular 시각화 연구
A33: 13팀 | B33: 이경원 | C33: 조은정,박상은,김형중,문성민 | D33: UN 국가의 투표성향 유사도 분석을 위한 proximity based circular 시각화 연구
A35: 2학기
A36: 1팀 | B36: 오규환 | C36: 김인대,허건,이필수,이주희,백상수,이윤지,박하늘,이정연, | D36: 슬라이딩 퍼즐 기반 게임 플레이 연구 | E36: 7월27-8월1일
E37: 4448100 | N37: =SUM(E37:M37) -> 4448100
A38: 2팀 | B38: 이경원 | C38: 김태현김동환,강지은 | D38: 데이터 시각화에 따른 NBA팀들의 승패요인 및 스타일분석
A40: 3팀 | B40: 신현준 | C40: 김희태 | D40: Realtime Traffic Light Recognition In Korea Traffic System(실시간 신호등 인식:한국 신호 체계에서의 신호등 인식)
A42: 4팀 | B42: 이경원 | C42: 강주연 강동훈, 이승규, | D42: 검색엔진의 검색결과에 대한 내용상 분류와 시각화에 따른 사용자 편의성 증대
A44: 5팀 | B44: 경민호 | C44: 정진수,문주성,정석주,김성진 | D44: Arduino 프로젝트
A47: 6팀 | B47: 이경원 | C47: 이명호,김예원,송정우,(김진기) | D47: 아주대 중앙도서관 데이터 분석 및 시각화를 통한 활용방안 연구
A50: 7팀 | B50: 이경원 | C50: 한상빈,김진기, 윤태린,강바롬,한승엽 | D50: Show me the sopt | E50: 9월16일 | F50: 9월17일 | G50: 10월 6일 | H50: 10월 6일 | I50: 10월 6일 | J50: 9월 23일 | K50: 10월 22일 | L50: 10월 22일
E51: 18700 | F51: 6015000 | G51: 744864 | H51: 744864 | I51: 744864 | J51: 2745393 | K51: 55000 | L51: 6000 | N51: =SUM(E51:M51) -> 11074685
E52: 교정/번역료 | F52: 항공료 | G52: VIS 학회 등록비(김진기) | H52: VIS 학회 등록비(윤태린) | I52: VIS 학회 등록비(강바롬) | J52: 학회등록비 | K52: VIS 학회 포스터 제작 | L52: VIS학회 포스터 통 구입 | O52: 10만
A53: 합 계 | E53: =SUM(N3:N51) -> 24764322
A54: 법인카드
A55: 현금
